fUST/lending_fUST_20250623
["ID","MTS","AMOUNT","RATE_DAILY","PERIOD"]
[367019866,1750618279009,-733.82,0.00042191,120]
[367019868,1750618279049,-500.0,0.00042191,14]
[367019870,1750618279087,-463.12,0.00042191,120]
[367019872,1750618279125,-223.58733939,0.00042191,120]
[367019874,1750618279163,-636.64,0.00042191,120]
[367019876,1750618279202,-460.0,0.00042191,120]
[367019878,1750618279250,-1059.62,0.00042191,120]
[367019879,1750618279299,-460.0,0.00042191,120]
[367019884,1750618279481,-460.0,0.00042191,120]
[367019886,1750618279525,-460.0,0.00042191,120]
[367019888,1750618279570,-460.0,0.00042191,120]
[367019890,1750618279614,-460.0,0.00042191,120]
[367019892,1750618279665,-1297.24,0.00042191,120]
[367019894,1750618279709,-3646.26,0.00042191,120]
[367019896,1750618279755,-460.0,0.00042191,120]
[367019898,1750618279803,-477.42,0.00042191,120]
[367019900,1750618279849,-460.0,0.00042191,120]
[367019902,1750618279895,-460.0,0.00042191,120]
[367019905,1750618279941,-460.0,0.00042191,120]
[367019907,1750618279987,-460.0,0.00042191,120]
[367019909,1750618280033,-460.0,0.00042191,120]
[367019910,1750618280079,-460.0,0.00042191,120]
[367019912,1750618280125,-460.0,0.00042191,120]
[367019914,1750618280171,-1082.57,0.00042191,120]
[367019916,1750618280217,-460.0,0.00042191,120]
[367019918,1750618280267,-460.0,0.00042191,120]
[367019920,1750618280311,-225.63662283,0.00042191,120]
[367019923,1750618280357,-876.44,0.00042191,120]
[367019924,1750618280401,-569.76,0.00042191,120]
[367019926,1750618280455,-460.0,0.00042191,120]
[367019929,1750618280505,-460.0,0.00042191,120]
[367019931,1750618280556,-460.0,0.00042191,120]
[367019933,1750618280607,-460.0,0.00042191,120]
[367019935,1750618280655,-462.94,0.00042191,120]
[367019936,1750618280705,-460.0,0.00042191,120]
[367019938,1750618280751,-460.0,0.00042191,120]
[367019939,1750618280797,-436.49857086,0.00042191,120]
[367019940,1750618280844,-536.72587347,0.00042191,120]
[367019941,1750618280888,-460.0,0.00042191,120]
[367019942,1750618280931,-460.0,0.00042191,120]
[367019943,1750618280974,-460.0,0.00042191,120]
[367019944,1750618281019,-460.0,0.00042191,120]
[367019945,1750618281065,-460.0,0.00042191,120]
[367019946,1750618281110,-460.0,0.00042191,120]
[367019947,1750618281156,-567.25,0.00042191,120]
[367019948,1750618281203,-460.0,0.00042191,120]
[367019949,1750618281250,-460.0,0.00042191,120]
[367019950,1750618281299,-1360.06,0.00042191,120]
[367019951,1750618281347,-641.12,0.00042191,120]
[367019952,1750618281397,-643.34,0.00042191,120]
[367019953,1750618281447,-460.0,0.00042191,120]
[367019954,1750618281497,-460.0,0.00042191,120]
[367019955,1750618281547,-2225.86,0.00042191,120]
[367019956,1750618281595,-460.0,0.00042191,120]
[367019957,1750618281643,-460.0,0.00042191,120]
[367019958,1750618281690,-1004.95,0.00042191,120]
[367019959,1750618281737,-460.0,0.00042191,120]
[367019960,1750618281784,-460.0,0.00042191,120]
[367019961,1750618281831,-460.0,0.00042191,120]
[367019962,1750618281875,-460.0,0.00042191,60]
[367019963,1750618281920,-2639.78,0.00042191,120]
[367019964,1750618281963,-380.45866287,0.00042191,120]
[367019965,1750618282007,-2874.06,0.00042191,120]
[367019966,1750618282051,-460.0,0.00042191,120]
[367019967,1750618282101,-460.0,0.00042191,120]
[367019968,1750618282149,-616.99,0.00042191,120]
[367019969,1750618282197,-2242.43,0.00042191,120]
[367019970,1750618282243,-460.0,0.00042191,120]
[367019971,1750618282287,-460.0,0.00042191,120]
[367019972,1750618282334,-612.4,0.00042191,120]
[367019973,1750618282382,-460.0,0.00042191,120]
[367019974,1750618282430,-1164.19,0.00042191,120]
[367019975,1750618282478,-783.25,0.00042191,120]
[367019976,1750618282527,-460.0,0.00042191,120]
[367019977,1750618282576,-460.0,0.00042191,120]
[367019978,1750618282625,-460.0,0.00042191,120]
[367019979,1750618282673,-460.0,0.00042191,120]
[367019980,1750618282721,-460.0,0.00042191,120]
[367019981,1750618282772,-460.0,0.00042191,120]
[367019982,1750618282819,-460.0,0.00042191,120]
[367019983,1750618282867,-460.0,0.00042191,120]
[367019984,1750618282914,-460.0,0.00042191,120]
[367019985,1750618282961,-460.0,0.00042191,120]
[367019986,1750618283007,-460.0,0.00042191,120]
[367019987,1750618283055,-460.0,0.00042191,120]
[367019988,1750618283104,-502.89,0.00042191,120]
[367019989,1750618283153,-346.77288857,0.00042191,120]
[367019990,1750618283204,-460.0,0.00042191,120]
[367019991,1750618283252,-460.0,0.00042191,120]
[367019992,1750618283300,-754.1,0.00042191,120]
[367019993,1750618283348,-460.0,0.00042191,120]
[367019994,1750618283394,-460.0,0.00042191,120]
[367019995,1750618283442,-460.0,0.00042191,120]
[367019996,1750618283492,-607.16990538,0.00042191,120]
[367019997,1750618283538,-460.0,0.00042191,120]
[367019998,1750618283587,-822.18,0.00042191,120]
[367019999,1750618283638,-460.0,0.00042191,120]
[367020000,1750618283687,-460.0,0.00042191,120]
[367020001,1750618283736,-460.0,0.00042191,120]
[367020002,1750618283783,-460.0,0.00042191,120]
[367020003,1750618283832,-460.0,0.00042191,120]
[367020004,1750618283884,-460.0,0.00042191,120]
[367020005,1750618283931,-500.0,0.00042191,120]
[367020006,1750618284113,-639.38,0.00042191,120]
[367020007,1750618284162,-460.0,0.00042191,120]
[367020008,1750618284214,-460.0,0.00042191,120]
[367020009,1750618284261,-460.0,0.00042191,120]
[367020010,1750618284308,-460.0,0.00042191,120]
[367020011,1750618284356,-477.65,0.00042191,120]
[367020012,1750618284404,-1320.19,0.00042191,120]
[367020013,1750618284454,-460.0,0.00042191,120]
[367020014,1750618284501,-538.59,0.00042191,120]
[367020015,1750618284549,-572.63,0.00042191,120]
[367020016,1750618284597,-460.0,0.00042191,120]
[367020017,1750618284645,-460.0,0.00042191,120]
[367020018,1750618284694,-460.0,0.00042191,120]
[367020019,1750618284742,-993.43,0.00042191,120]
[367020020,1750618284789,-460.0,0.00042191,120]
[367020021,1750618284836,-460.0,0.00042191,120]
[367020022,1750618284882,-460.0,0.00042191,120]
[367020023,1750618284927,-460.0,0.00042191,120]
[367020024,1750618284976,-519.66,0.00042191,120]
[367020025,1750618285022,-460.0,0.00042191,120]
[367020026,1750618285068,-621.69,0.00042191,120]
[367020027,1750618285115,-460.0,0.00042191,120]
[367020028,1750618285161,-460.0,0.00042191,120]
[367020029,1750618285208,-966.4,0.00042191,120]
[367020030,1750618285254,-460.0,0.00042191,120]
[367020031,1750618285302,-460.0,0.00042191,120]
[367020032,1750618285349,-460.0,0.00042191,120]
[367020033,1750618285398,-460.0,0.00042191,120]
[367020034,1750618285447,-460.0,0.00042191,120]
[367020035,1750618285494,-312.31906524,0.00042191,120]
[367020036,1750618285542,-460.0,0.00042191,120]
[367020037,1750618285592,-460.0,0.00042191,120]
[367020038,1750618285643,-460.0,0.00042191,120]
[367020039,1750618285695,-460.0,0.00042191,120]
[367020040,1750618285753,-460.0,0.00042191,120]
[367020041,1750618285800,-208.77080692,0.00042191,120]
[367020042,1750618285847,-460.0,0.00042191,120]
[367020043,1750618285896,-460.0,0.00042191,120]
[367020044,1750618285945,-490.25529439,0.00042191,120]
[367020045,1750618285993,-460.0,0.00042191,120]
[367020046,1750618286039,-460.0,0.00042191,120]
[367020047,1750618286085,-460.0,0.00042191,120]
[367020048,1750618286132,-460.0,0.00042191,120]
[367020049,1750618286182,-1302.28,0.00042191,120]
[367020050,1750618286232,-460.0,0.00042191,120]
[367020051,1750618286282,-464.0,0.00042191,120]
[367020052,1750618286329,-832.9,0.00042191,120]
[367020053,1750618286378,-977.48,0.00042191,120]
[367020054,1750618286425,-624.68,0.00042191,120]
[367020055,1750618286471,-586.01709695,0.00042191,120]
[367020056,1750618286520,-460.0,0.00042191,120]
[367020057,1750618286570,-1011.44,0.00042191,120]
[367020058,1750618286617,-460.0,0.00042191,120]
[367020059,1750618286665,-460.0,0.00042191,120]
[367020060,1750618286713,-1005.62,0.00042191,120]
[367020061,1750618286759,-460.0,0.00042191,120]
[367020062,1750618286807,-460.0,0.00042191,120]
[367020063,1750618286855,-460.0,0.00042191,120]
[367020064,1750618286901,-460.0,0.00042191,120]
[367020065,1750618286948,-460.0,0.00042191,120]
[367020066,1750618286995,-460.0,0.00042191,120]
[367020067,1750618287040,-460.0,0.00042191,120]
[367020068,1750618287086,-851.34,0.00042191,120]
[367020069,1750618287132,-7259.44,0.00042191,120]
[367020070,1750618287175,-856.64,0.00042191,120]
[367020071,1750618287220,-460.0,0.00042191,120]
[367020072,1750618287264,-460.0,0.00042191,120]
[367020073,1750618287308,-460.0,0.00042191,120]
[367020074,1750618287352,-493.28,0.00042191,120]
[367020075,1750618287395,-547.9,0.00042191,120]
[367020076,1750618287440,-460.0,0.00042191,120]
[367020077,1750618287487,-460.0,0.00042191,120]
[367020078,1750618287535,-577.01,0.00042191,120]
[367020079,1750618287584,-460.0,0.00042191,120]
[367020080,1750618287634,-460.0,0.00042191,120]
[367020081,1750618287684,-460.0,0.00042191,120]
[367020082,1750618287733,-752.46,0.00042191,120]
[367020083,1750618287783,-580.34,0.00042191,120]
[367020084,1750618287831,-762.42,0.00042191,120]
[367020085,1750618287879,-460.0,0.00042191,120]
[367020086,1750618287926,-460.0,0.00042191,120]
[367020087,1750618287977,-1076.55,0.00042191,120]
[367020088,1750618288028,-460.0,0.00042191,120]
[367020089,1750618288076,-3944.88,0.00042191,120]
[367020090,1750618288124,-460.0,0.00042191,120]
[367020091,1750618288171,-460.0,0.00042191,120]
[367020092,1750618288218,-500.0,0.00042191,120]
[367020093,1750618288265,-2388.71,0.00042191,120]
[367020094,1750618288312,-460.0,0.00042191,120]
[367020095,1750618288358,-977.24,0.00042191,120]
[367020096,1750618288404,-1783.95,0.00042191,120]
[367020097,1750618288451,-8894.79,0.00042191,120]
[367020098,1750618288497,-1760.96,0.00042191,120]
[367020099,1750618288543,-460.0,0.00042191,120]
[367020100,1750618288753,-460.0,0.00042191,120]
[367020101,1750618288802,-460.0,0.00042191,120]
[367020102,1750618288849,-460.0,0.00042191,120]
[367020103,1750618288896,-4981.75,0.00042191,120]
[367020104,1750618288942,-460.0,0.00042191,120]
[367020105,1750618288986,-460.0,0.00042191,120]
[367020106,1750618289031,-2867.12,0.00042191,120]
[367020107,1750618289075,-586.65,0.00042191,120]
[367020108,1750618289120,-230.64,0.00042191,120]
[367020109,1750618289167,-1409.36,0.00042191,120]
[367020110,1750618289214,-471.05,0.00042191,120]
[367020111,1750618289261,-633.38,0.00042191,120]
[367020112,1750618289308,-460.0,0.00042191,120]
[367020113,1750618289354,-460.0,0.00042191,120]
[367020114,1750618289401,-460.0,0.00042191,120]
[367020115,1750618289449,-460.0,0.00042191,120]
[367020116,1750618289499,-460.0,0.00042191,120]
[367020117,1750618289546,-2000.81,0.00042191,120]
[367020118,1750618289593,-688.84,0.00042191,120]
[367020119,1750618289643,-460.0,0.00042191,120]
[367020120,1750618289690,-361.00997491,0.00042191,120]
[367020121,1750618289737,-482.19,0.00042191,120]
[367020122,1750618289785,-460.0,0.00042191,120]
[367020123,1750618289831,-484.12,0.00042191,120]
[367020124,1750618289877,-460.0,0.00042191,120]
[367020125,1750618289923,-554.76,0.00042191,120]
[367020126,1750618289971,-460.0,0.00042191,120]
[367020127,1750618290016,-460.0,0.00042191,120]
[367020128,1750618290061,-494.79,0.00042191,120]
[367020129,1750618290107,-460.0,0.00042191,120]
[367020130,1750618290156,-460.0,0.00042191,120]
[367020131,1750618290204,-2426.2,0.00042191,120]
[367020132,1750618290251,-1143.89,0.00042191,120]
[367020133,1750618290296,-460.0,0.00042191,120]
[367020134,1750618290343,-431.23646066,0.00042191,120]
[367020135,1750618290389,-1046.85,0.00042191,120]
[367020136,1750618290436,-347.76569123,0.00042191,120]
[367020137,1750618290482,-925.84,0.00042191,120]
[367020138,1750618290531,-597.73,0.00042191,120]
[367020139,1750618290580,-11265.91,0.00042191,120]
[367020140,1750618290627,-460.0,0.00042191,120]
[367020141,1750618290674,-6160.7,0.00042191,120]
[367020142,1750618290720,-460.0,0.00042191,120]
[367020143,1750618290770,-491.04,0.00042191,120]
[367020144,1750618290817,-1189.67,0.00042191,120]
[367020145,1750618290864,-1798.04,0.00042191,30]
[367020146,1750618290910,-470.58,0.00042191,120]
[367020147,1750618290957,-1249.6,0.00042191,120]
[367020148,1750618291002,-3579.12,0.00042191,120]
[367020149,1750618291048,-10666.48,0.00042191,120]
[367020150,1750618291093,-460.0,0.00042191,120]
[367020151,1750618291137,-460.0,0.00042191,120]
[367020152,1750618291181,-1777.05,0.00042191,120]
[367020153,1750618291225,-582.51,0.00042191,120]
[367020154,1750618291268,-460.0,0.00042191,120]
[367020155,1750618291312,-1267.32,0.00042191,120]
[367020156,1750618291356,-544.23,0.00042191,120]
[367020157,1750618291398,-460.0,0.00042191,120]
[367020158,1750618291441,-460.0,0.00042191,120]
[367020159,1750618291484,-460.0,0.00042191,120]
[367020160,1750618291529,-460.0,0.00042191,120]
[367020161,1750618291572,-485.02,0.00042191,120]
[367020162,1750618291616,-2652.41,0.00042191,120]
[367020163,1750618291662,-460.0,0.00042191,120]
[367020164,1750618291708,-460.0,0.00042191,120]
[367020165,1750618291754,-579.35,0.00042191,120]
[367020166,1750618291802,-724.13,0.00042191,120]
[367020167,1750618291848,-460.0,0.00042191,120]
[367020168,1750618291894,-478.17021496,0.00042191,120]
[367020169,1750618291939,-475.23,0.00042191,120]
[367020170,1750618291984,-3283.97,0.00042191,120]
[367020171,1750618292029,-460.0,0.00042191,120]
[367020172,1750618292074,-8136.01,0.00042191,120]
[367020173,1750618292120,-1594.18,0.00042191,120]
[367020174,1750618292164,-1759.51592329,0.000424,120]
[367020175,1750618292210,-152.0,0.00042422,31]
[367020176,1750618292257,-518.48,0.00042465,120]
[367020177,1750618292303,-460.0,0.00042465,120]
[367020178,1750618292349,-460.0,0.00042465,120]
[367020179,1750618292396,-460.0,0.00042465,120]
[367020180,1750618292446,-460.0,0.00042465,120]
[367020181,1750618292498,-473.16663588,0.00042465,120]
[367020182,1750618292548,-460.0,0.00042465,120]
[367020183,1750618292597,-460.0,0.00042465,120]
[367020184,1750618292647,-460.0,0.00042465,120]
[367020185,1750618292695,-1226.97,0.00042465,120]
[367020186,1750618292746,-460.0,0.00042465,120]
[367020187,1750618292796,-460.0,0.00042465,120]
[367020188,1750618292844,-460.0,0.00042465,120]
[367020189,1750618292893,-460.0,0.00042465,120]
[367020190,1750618292941,-460.0,0.00042465,120]
[367020191,1750618292987,-460.0,0.00042465,120]
[367020192,1750618293036,-460.0,0.00042465,120]
[367020193,1750618293086,-460.0,0.00042465,120]
[367020194,1750618293136,-460.0,0.00042465,120]
[367020195,1750618293330,-460.0,0.00042465,120]
[367020196,1750618293380,-460.0,0.00042465,120]
[367020197,1750618293432,-460.0,0.00042465,120]
[367020198,1750618293483,-460.0,0.00042465,30]
[367020199,1750618293535,-460.0,0.00042465,120]
[367020200,1750618293588,-460.0,0.00042465,120]
[367020201,1750618293637,-199.02441821,0.00042465,120]
[367020202,1750618293686,-460.0,0.00042465,120]
[367020203,1750618293736,-460.0,0.00042465,120]
[367020204,1750618293787,-460.0,0.00042465,120]
[367020205,1750618293836,-460.0,0.00042465,120]
[367020206,1750618293886,-460.0,0.00042465,120]
[367020207,1750618293936,-692.24,0.00042465,120]
[367020208,1750618293984,-225.50370775,0.00042465,120]
[367020209,1750618294034,-460.0,0.00042465,120]
[367020210,1750618294082,-460.0,0.00042465,120]
[367020211,1750618294130,-460.0,0.00042465,120]
[367020212,1750618294179,-460.0,0.00042465,120]
[367020213,1750618294231,-460.0,0.00042465,120]
[367020214,1750618294280,-581.93084835,0.00042465,120]
[367020215,1750618294330,-460.0,0.00042465,120]
[367020216,1750618294378,-580.0,0.00042465,120]
[367020217,1750618294428,-460.0,0.00042465,120]
[367020218,1750618294475,-460.0,0.00042465,120]
[367020219,1750618294523,-460.0,0.00042465,120]
[367020220,1750618294577,-555.51,0.00042465,120]
[367020221,1750618294625,-532.37,0.00042465,120]
[367020222,1750618294674,-460.0,0.00042465,120]
[367020223,1750618294724,-460.0,0.00042465,30]
[367020224,1750618294773,-460.0,0.00042465,30]
[367020225,1750618294822,-460.0,0.00042465,120]
[367020226,1750618294868,-366.83759577,0.00042465,120]
[367020227,1750618294916,-460.0,0.00042465,120]
[367020228,1750618294964,-719.72,0.00042465,120]
[367020229,1750618295012,-460.0,0.00042465,120]
[367020230,1750618295060,-1268.62,0.00042465,120]
[367020231,1750618295117,-552.24507458,0.00042465,120]
[367020232,1750618295166,-1850.65,0.00042465,120]
[367020233,1750618295213,-460.0,0.00042465,120]
[367020234,1750618295265,-460.0,0.00042465,120]
[367020235,1750618295313,-460.0,0.00042465,120]
[367020236,1750618295357,-460.0,0.00042465,120]
[367020237,1750618295402,-460.0,0.00042465,120]
[367020238,1750618295448,-726.12,0.00042465,120]
[367020239,1750618295496,-924.87,0.00042465,120]
[367020240,1750618295543,-460.0,0.00042465,120]
[367020241,1750618295591,-173.83523145,0.00042465,120]
[367020242,1750618295639,-460.0,0.00042465,120]
[367020243,1750618295687,-460.0,0.00042465,120]
[367020244,1750618295737,-1062.79,0.00042465,120]
[367020245,1750618295785,-575.61,0.00042465,120]
[367020246,1750618295833,-471.46,0.00042465,120]
[367020247,1750618295881,-460.0,0.00042465,120]
[367020248,1750618295928,-460.0,0.00042465,60]
[367020249,1750618295974,-391.38884458,0.00042465,120]
[367020250,1750618296021,-460.0,0.00042465,120]
[367020251,1750618296066,-460.0,0.00042465,120]
[367020252,1750618296111,-460.0,0.00042465,120]
[367020253,1750618296157,-460.0,0.00042465,120]
[367020254,1750618296200,-460.0,0.00042465,120]
[367020255,1750618296243,-460.0,0.00042465,120]
[367020256,1750618296287,-523.04,0.00042465,120]
[367020257,1750618296329,-460.0,0.00042465,120]
[367020258,1750618296374,-460.0,0.00042465,120]
[367020259,1750618296422,-460.0,0.00042465,120]
[367020260,1750618296471,-554.94,0.00042465,120]
[367020261,1750618296519,-531.81,0.00042465,120]
[367020262,1750618296571,-460.0,0.00042465,120]
[367020263,1750618296620,-460.0,0.00042465,120]
[367020264,1750618296669,-626.48,0.00042465,120]
[367020265,1750618296716,-460.0,0.00042465,120]
[367020266,1750618296762,-460.0,0.00042465,120]
[367020267,1750618296809,-460.0,0.00042465,120]
[367020268,1750618296856,-460.0,0.00042465,120]
[367020269,1750618296904,-460.0,0.00042465,120]
[367020270,1750618296951,-380.0,0.00042465,120]
[367020271,1750618296998,-460.0,0.00042465,120]
[367020272,1750618297048,-460.0,0.00042465,120]
[367020273,1750618297099,-460.0,0.00042465,120]
[367020274,1750618297145,-460.0,0.00042465,120]
[367020275,1750618297192,-460.0,0.00042465,120]
[367020276,1750618297240,-460.0,0.00042465,120]
[367020277,1750618297289,-460.0,0.00042465,120]
[367020278,1750618297337,-460.0,0.00042465,120]
[367020279,1750618297384,-460.0,0.00042465,120]
[367020280,1750618297430,-460.0,0.00042465,120]
[367020281,1750618297479,-733.82,0.00042465,120]
[367020282,1750618297529,-500.0,0.00042465,14]
[367020283,1750618297578,-463.12,0.00042465,120]
[367020284,1750618297625,-636.64,0.00042465,120]
[367020285,1750618297673,-415.2976808,0.00042465,120]
[367020286,1750618297724,-176.70511728,0.00042465,120]
[367020287,1750618305439,132.4739746,0.0002027,2]
[367020288,1750618305463,191.45384312,0.0002027,2]
[367020289,1750618307432,-303.02,0.0002499,10]
[367020290,1750618307487,-252.52,0.0002499,10]
[367020291,1750618307602,-160.0,0.000264,10]
[367020292,1750618307655,-160.0,0.000264,30]
[367020293,1750618307707,-160.0,0.00027,10]
[367020294,1750618307756,-160.0,0.00027,30]
[367020295,1750618307804,-230.14598372,0.00027,10]
[367020296,1750618307851,-230.14598372,0.00027,30]
[367020297,1750618307902,-226.14,0.00028371,30]
[367020298,1750618307949,-230.14598372,0.00029,10]
[367020299,1750618307996,-230.14598372,0.00029,10]
[367020300,1750618308045,-160.0,0.00029,10]
[367020301,1750618308092,-160.0,0.00029,10]
[367020302,1750618308148,-152.0,0.00038803,15]
[367020303,1750618308194,-152.0,0.00039408,15]
[367020304,1750618308242,-152.0,0.00040013,15]
[367020305,1750618308290,-152.0,0.00040617,15]
[367020306,1750618308337,-460.0,0.00041095,120]
[367020307,1750618308384,-460.0,0.00041095,120]
[367020308,1750618308430,-438.53826145,0.00041095,120]
[367020309,1750618308478,-404.62798394,0.00041095,120]
[367020310,1750618308525,-460.0,0.00041095,120]
[367020311,1750618308574,-683.88,0.00041095,120]
[367020312,1750618308621,-528.57,0.00041095,120]
[367020313,1750618308669,-460.0,0.00041095,120]
[367020314,1750618308718,-3929.24,0.00041095,120]
[367020315,1750618308769,-1876.21,0.00041095,120]
[367020316,1750618308820,-460.0,0.00041095,30]
[367020317,1750618308869,-460.0,0.00041095,120]
[367020318,1750618308916,-460.0,0.00041095,120]
[367020319,1750618308963,-603.53,0.00041095,120]
[367020320,1750618309009,-460.0,0.00041095,120]
[367020321,1750618309057,-460.0,0.00041095,120]
[367020322,1750618309106,-460.0,0.00041095,120]
[367020323,1750618309155,-460.0,0.00041095,120]
[367020324,1750618309207,-6261.38,0.00041095,120]
[367020325,1750618309255,-445.05091823,0.00041095,60]
[367020326,1750618309304,-432.48975922,0.00041095,60]
[367020327,1750618309357,-769.92,0.00041095,120]
[367020328,1750618309407,-460.0,0.00041095,120]
[367020329,1750618309454,-460.0,0.00041095,120]
[367020330,1750618309504,-7683.05,0.00041095,120]
[367020331,1750618309550,-460.0,0.00041095,120]
[367020332,1750618309595,-460.0,0.00041095,120]
[367020333,1750618309641,-406.55056579,0.00041095,120]
[367020334,1750618309687,-460.0,0.00041095,120]
[367020335,1750618309733,-666.34,0.00041095,120]
[367020336,1750618309780,-460.0,0.00041095,120]
[367020337,1750618309826,-460.0,0.00041095,120]
[367020338,1750618309875,-460.0,0.00041095,120]
[367020339,1750618309922,-460.0,0.00041095,120]
[367020340,1750618309967,-460.0,0.00041095,120]
[367020341,1750618310012,-500.0,0.00041095,120]
[367020342,1750618310058,-12955.9,0.00041095,120]
[367020343,1750618310102,-460.0,0.00041095,120]
[367020344,1750618310148,-460.0,0.00041095,120]
[367020345,1750618310195,-152.0,0.00041222,31]
[367020346,1750618310244,-500.0,0.00041368,120]
[367020347,1750618310294,-200.0,0.00041368,120]
[367020348,1750618310341,-5000.0,0.00041368,120]
[367020349,1750618310388,-151.0,0.00041368,120]
[367020350,1750618310437,-500.0,0.00041368,120]
[367020351,1750618310485,-500.0,0.00041368,120]
[367020352,1750618310535,-207.4,0.00041368,120]
[367020353,1750618310585,-5000.0,0.00041368,120]
[367020354,1750618310634,-500.0,0.00041368,120]
[367020355,1750618310683,-500.0,0.00041368,120]
[367020356,1750618310733,-215.0738,0.00041368,120]
[367020357,1750618310784,-500.0,0.00041368,120]
[367020358,1750618310833,-223.0315306,0.00041368,120]
[367020359,1750618310882,-500.0,0.00041368,120]
[367020360,1750618310931,-500.0,0.00041368,120]
[367020361,1750618311133,-231.28369723,0.00041368,120]
[367020362,1750618311186,-500.0,0.00041368,120]
[367020363,1750618311235,-500.0,0.00041368,120]
[367020364,1750618311282,-500.0,0.00041368,120]
[367020365,1750618311330,-307.92676441,0.00041368,120]
[367020366,1750618311376,-239.84119403,0.00041368,120]
[367020367,1750618311425,-500.0,0.00041368,120]
[367020368,1750618311474,-248.71531821,0.00041368,120]
[367020369,1750618311524,-500.0,0.00041368,120]
[367020370,1750618311576,-257.91778498,0.00041368,120]
[367020371,1750618311627,-500.0,0.00041368,120]
[367020372,1750618311679,-267.46074303,0.00041368,120]
[367020373,1750618311731,-500.0,0.00041368,120]
[367020374,1750618311781,-277.35679052,0.00041368,120]
[367020375,1750618311834,-500.0,0.00041368,120]
[367020376,1750618311883,-287.61899177,0.00041368,120]
[367020377,1750618311931,-500.0,0.00041368,120]
[367020378,1750618311980,-500.0,0.00041368,120]
[367020379,1750618312027,-298.26089446,0.00041368,120]
[367020380,1750618312077,-500.0,0.00041368,120]
[367020381,1750618312124,-500.0,0.00041368,120]
[367020382,1750618312169,-309.29654756,0.00041368,120]
[367020383,1750618312215,-320.74051982,0.00041368,120]
[367020384,1750618312262,-332.60791905,0.00041368,120]
[367020385,1750618312308,-344.91441206,0.00041368,120]
[367020386,1750618312354,-357.6762453,0.00041368,120]
[367020387,1750618312401,-370.91026638,0.00041368,120]
[367020388,1750618312446,-384.63394623,0.00041368,120]
[367020389,1750618312492,-398.86540225,0.00041368,120]
[367020390,1750618312543,-460.0,0.00041369,120]
[367020391,1750618312589,-460.0,0.00041369,120]
[367020392,1750618312636,-460.0,0.00041369,120]
[367020393,1750618312684,-683.88,0.00041369,120]
[367020394,1750618312730,-528.57,0.00041369,120]
[367020395,1750618312777,-3929.24,0.00041369,120]
[367020396,1750618312824,-1876.21,0.00041369,120]
[367020397,1750618312869,-460.0,0.00041369,30]
[367020398,1750618312916,-460.0,0.00041369,120]
[367020399,1750618312961,-603.53,0.00041369,120]
[367020400,1750618313007,-460.0,0.00041369,120]
[367020401,1750618313049,-460.0,0.00041369,120]
[367020402,1750618313091,-293.1800686,0.00041369,120]